[Event "Karel Janecek Open 2025"]
[Site "Prague"]
[Date "2025.03.03"]
[Round "5.14"]
[White "Piccoli, Lucas Fonseca"]
[Black "Noe, Christopher"]
[Result "0-1"]
[Annotator "TA"]
[ECO "B13"]
[WhiteElo "2284"]
[BlackElo "2511"]
[PlyCount "120"]
[EventDate "2025.02.21"]
[EventType "swiss"]
[EventCountry "CZE"]
[SourceTitle "playchess.com"]
[Source "ChessBase"]
[SourceQuality "1"]
[TimeControl "40/5400+30:1800+30"]

{[%evp 22,120,31,0,0,0,7,0,0,0,0,0,-3,-21,22,0,0,0,0,0,0,0,0,0,0,-20,0,-19,-11,-39,0,0,0,0,0,0,9,4,29,22,31,6,12,11,30,0,16,0,83,19,60,32,64,-114,-102,-107,-102,-107,-116,-112,-87,-101,-114,-130,-145,-210,-218,-218,-201,-183,-139,-330,-173,-669,-676,-673,-585,-703,-697,-677,-639,-705,-584,-520,-362,-4718,-4698,-29968,-6721,-29984,-29985,-29985,-29986,-29993,-29994,-29995,-29996,-29997,-29998,-29998,-29999]} 1. e4 {[%emt 0:03:57]} c6 {[%emt 0:00:30]} 2. d4 {[%emt 0:00:12]} d5 {[%emt 0:00:08]} 3. exd5 {[%emt 0:00:14]} cxd5 {[%emt 0:00:08]} 4. Bd3 {[%emt 0:00:06]} Nc6 {[%emt 0:02:34]} 5. c3 {[%emt 0:00:10]} Nf6 {[%emt 0:00:07]} 6. Bf4 {[%emt 0:00:16]} Bg4 {[%emt 0:08:42]} 7. Qb3 {[%emt 0:00:08]} Qd7 {[%emt 0:08:30]} 8. Nd2 {[%emt 0:00:10]} e6 {[%emt 0:00:05]} 9. Ngf3 {[%emt 0:00:06]} Bxf3 {[%emt 0:01:05]} 10. Nxf3 {[%emt 0:00:08]} Bd6 {[%emt 0:04:41]} 11. Bg3 {[%emt 0:01:00]} O-O {[%emt 0:00:46]} 12. O-O {[%emt 0:00:16]} Bxg3 {[%emt 0:02:43] B13: Caro-Kann: Exchange Variation and Panov-Botvinnik Attack.} 13. hxg3 {[%emt 0:00:17]} Rab8 {[%emt 0:03:25]} 14. a4 {[%emt 0:01:00]} g6 $146 {[%emt 0:11:53] The position is equal.} (14... Qc7 15. Rfe1 Rfc8 16. Ne5 a6 17. Qd1 b5 18. Qe2 Qb6 19. Nxc6 Qxc6 20. axb5 axb5 {0-1 Kubikova,A (2170)-Zdebskaja,N (2350) EU-chT U18 Girls 4th 2003 (7)}) 15. Rfe1 {[%emt 0:04:10]} Kg7 {[%emt 0:00:06]} 16. a5 {[%emt 0:11:06]} Qc7 {[%emt 0:04:31]} 17. Qa4 {[%emt 0:01:35]} Ne8 {[%emt 0:03:45]} 18. Ne5 {[%emt 0:13:40]} Nd6 {[%emt 0:06:27]} 19. Re2 {[%emt 0:04:23]} Rfc8 {[%emt 0:05:18]} 20. Nf3 {[%emt 0:09:16]} b5 {[%emt 0:02:28]} 21. axb6 {[%emt 0:01:20]} axb6 {[%emt 0:00:29]} 22. Qd1 {[%emt 0:06:15]} Ra8 {[%emt 0:01:35]} 23. Nd2 {[%emt 0:02:17]} Na5 {[%emt 0:05:35]} 24. Re1 {[%emt 0:03:11]} b5 {[%emt 0:04:08]} 25. Nb3 {[%emt 0:00:47]} Nab7 {[%emt 0:01:19] Wards off Nc5} (25... Nxb3 $15 26. Qxb3 h6) 26. Qe2 $11 {[%emt 0:03:34]} Nc4 {[%emt 0:00:45]} 27. g4 {[%emt 0:01:39][%cal Bg3g4,Bg4g5][%mdl 32]} Qd8 {[%emt 0:04:17]} 28. g3 {[%emt 0:02:34]} Kg8 {[%emt 0:01:42]} 29. Kg2 {[%emt 0:01:01]} Rxa1 {[%emt 0:00:33]} 30. Rxa1 {[%emt 0:01:36]} Qb6 {[%emt 0:08:10]} 31. g5 {[%emt 0:20:23]} Qd8 {[%emt 0:05:13]} 32. Ra7 {[%emt 0:01:01]} Qb6 {[%emt 0:00:07]} 33. Ra1 {[%emt 0:00:02]} Qd8 {[%emt 0:01:11]} 34. Ra7 {[%emt 0:00:04]} Ncd6 {[%emt 0:00:32]} (34... Qb6 $11 35. Ra2 Qd8) 35. Ra6 {[%emt 0:04:26]} (35. Bxb5 Qb6 (35... Qxg5 $2 36. Ba6 $18) 36. Rxb7 Qxb7 $19) (35. Qg4 $16) 35... Qxg5 {[%emt 0:02:28]} 36. Bxb5 {[%emt 0:00:08]} (36. Nc5 $5) 36... Ne4 {[%emt 0:01:15]} 37. Qe3 $2 {[%emt 0:04:00]} (37. Bd3 $14 {stays ahead.}) 37... Qxe3 $17 {[%emt 0:00:41][%csl Oe4] Strong Square Black (e4)} 38. fxe3 {[%emt 0:00:01]} Nbd6 {[%emt 0:02:07]} 39. Rb6 {[%emt 0:00:33]} Nf5 {[%emt 0:00:16][%csl LRe3,LRg3]} 40. Kf3 {[%emt 0:01:57]} Nfxg3 {[%emt 0:02:08] Black has more active pieces. A dynamic duo of knights.} ({Don't do} 40... Nexg3 41. Bd3 $19) 41. Nc5 {[%emt 0:04:21]} h5 42. Bd3 {[%emt 0:02:01]} g5 43. Bxe4 {[%emt 0:05:01]} (43. Ra6 $17) 43... Nxe4 $19 {[%emt 0:10:18]} 44. Nxe4 {[%emt 0:03:48]} dxe4+ {[%emt 0:04:23]} 45. Kxe4 $17 {[%emt 0:00:00][%mdl 4096] Endgame KR-KR} Kg7 {and ...h4 would now be decisive} 46. Rb5 $2 {[%emt 0:05:21] Now White is beyond hope.} (46. Ra6 $17) 46... Kg6 {[%emt 0:02:13]} (46... f5+ $142 47. Ke5 h4 48. Rb7+ (48. Kxe6 $2 h3 $19) 48... Kh8) 47. Rc5 $2 {[%emt 0:00:00]} (47. d5) 47... Rh8 $19 {[%emt 0:00:26]} 48. Ra5 {[%emt 0:00:00]} h4 {[%emt 0:00:26]} 49. Ra1 {[%emt 0:00:00]} f5+ {[%emt 0:01:22]} 50. Kf3 {[%emt 0:00:53]} g4+ 51. Kg2 {[%emt 0:00:00]} h3+ {[%emt 0:02:20]} 52. Kh2 {[%emt 0:00:00]} Kg5 {[%emt 0:01:26]} 53. b4 $2 {[%emt 0:04:06]} (53. Kg3) 53... Kh4 {[%emt 0:00:32]} 54. b5 {[%emt 0:04:48]} g3+ {[%emt 0:01:06]} 55. Kh1 {[%emt 0:00:33] [#]} f4 $1 {[%emt 0:05:47][%mdl 512] Black mates.} 56. exf4 {[%emt 0:01:16]} Rf8 {[%emt 0:00:00]} 57. b6 {[%emt 0:01:17]} Rxf4 {[%emt 0:06:35]} 58. c4 {[%emt 0:06:22]} h2 {[%emt 0:00:00]} (58... Rxd4 $2 59. b7 Rd2 (59... Rxc4 $2 {perishes.} 60. b8=Q $18) 60. b8=Q $18 (60. b8=B Rh2+ 61. Kg1 Re2 $11)) 59. b7 {[%emt 0:00:35]} Kh3 {[%emt 0:00:00][%csl Gh3][%cal Rg3g2]} 60. Rg1 {[%emt 0:00:37] [#]} Rf1 $1 {[%emt 0:00:00][%mdl 512] Weighted Error Value: White=0.69/Black=0.12 (very precise)   Loses game:     	White=1     	---        Mistake:       	White=5     	Black=3      Inaccurate:     	White=3     	Black=3      OK:         	White=7     	Black=16     Best:        	White=1     	Black=4} 0-1

[Event "Karel Janecek Open 2025"]
[Site "Prague"]
[Date "2025.03.03"]
[Round "5.15"]
[White "Toman, Ondrej"]
[Black "Poetsch, Hagen"]
[Result "1/2-1/2"]
[Annotator "TA"]
[ECO "D41"]
[WhiteElo "2274"]
[BlackElo "2482"]
[PlyCount "116"]
[EventDate "2025.02.21"]
[EventType "swiss"]
[EventCountry "CZE"]
[SourceTitle "playchess.com"]
[Source "ChessBase"]
[SourceQuality "1"]
[TimeControl "40/5400+30:1800+30"]

{[%evp 23,116,0,0,-2,0,0,8,-15,0,-15,0,0,0,0,8,5,17,13,22,20,23,0,0,0,0,0,0,0,0,0,0,0,0,0,0,0,0,0,0,0,0,0,0,0,0,0,0,0,0,0,0,0,0,0,0,0,0,0,0,0,0,0,0,0,0,0,0,0,0,0,0,0,0,0,8,8,8,8,8,8,8,8,8,0,0,0,0,0,0,0,0,0,0,0,0]} 1. d4 {[%emt 0:00:02]} d5 {[%emt 0:00:05]} 2. c4 {[%emt 0:00:07]} e6 {[%emt 0:00:05]} 3. Nc3 {[%emt 0:00:18]} Nf6 {[%emt 0:00:10]} 4. cxd5 {[%emt 0:00:44]} Nxd5 {[%emt 0:00:08]} 5. e4 {[%emt 0:00:06]} Nxc3 {[%emt 0:00:05]} 6. bxc3 {[%emt 0:00:04]} c5 {[%emt 0:00:09]} 7. Nf3 {[%emt 0:00:26]} cxd4 {[%emt 0:00:05]} 8. cxd4 {[%emt 0:00:05]} Bb4+ {[%emt 0:00:06]} 9. Bd2 {[%emt 0:00:15]} Bxd2+ {[%emt 0:00:05]} 10. Qxd2 {[%emt 0:00:07]} O-O {[%emt 0:00:05]} 11. Be2 {[%emt 0:00:44]} b6 {[%emt 0:00:06]} 12. O-O {[%emt 0:02:17]} Bb7 {[%emt 0:00:04]} 13. Qf4 {[%emt 0:01:52] D41: Queen's Gambit Declined: Semi-Tarrasch with 5 cxd5.} Nd7 {[%emt 0:03:22]} 14. Rac1 {[%emt 0:05:59]} Qb8 {[%emt 0:11:33]} 15. Qh4 {[%emt 0:12:54]} Qd8 {[%emt 0:12:09]} 16. Qf4 {[%emt 0:00:21]} Rc8 {[%emt 0:00:49]} 17. Rxc8 {[%emt 0:00:43]} Qxc8 {[%emt 0:00:06]} 18. Rc1 {[%emt 0:01:09] Dodges Qc2} Qb8 {[%emt 0:01:27]} 19. Qxb8 {[%emt 0:10:09]} Rxb8 $146 {[%emt 0:00:32]} (19... Nxb8 20. Bd3 Nc6 21. Bb1 Rd8 22. Rd1 Kf8 23. Kf1 Na5 24. Rc1 Nc6 25. Rd1 h6 26. Ke2 Rc8 27. Kd2 g5 {0-1 Planells Roig,J (2070)-Mascaro March,P (2360) Ibiza 2006 (6.4)}) 20. Rc7 {[%emt 0:01:56]} Nf6 {[%emt 0:01:08]} 21. Ne5 {[%emt 0:01:46] [#] f3 is the strong threat.} Bxe4 {[%emt 0:01:06]} 22. Rxa7 {[%emt 0:05:09]} Ra8 {[%emt 0:05:46] The position is equal.} 23. Rxa8+ {[%emt 0:11:22]} Bxa8 $11 {[%emt 0:00:07][%mdl 4096] Endgame KBN-KBN} 24. a4 {[%emt 0:01:01]} Bd5 {[%emt 0:03:52]} 25. Bb5 {[%emt 0:06:04]} Kf8 {[%emt 0:00:52]} 26. f3 {[%emt 0:01:56]} Ke7 {[%emt 0:00:20]} 27. Kf2 {[%emt 0:01:57]} Ba2 {[%emt 0:07:10]} 28. g3 {[%emt 0:04:24]} Nd5 {[%emt 0:01:21]} 29. Bc4 {[%emt 0:10:35]} Bxc4 {[%emt 0:04:21]} 30. Nxc4 {[%emt 0:00:02] KN-KN} f6 {[%emt 0:00:47]} 31. Ke1 {[%emt 0:00:45]} Kd7 {[%emt 0:03:51]} 32. Kd2 {[%emt 0:00:03]} Kc6 {[%emt 0:00:09]} 33. Na3 {[%emt 0:04:03]} g5 {[%emt 0:00:34]} 34. Kd3 {[%emt 0:02:19]} h5 {[%emt 0:01:54]} 35. Nc2 {[%emt 0:02:54]} g4 {[%emt 0:08:12]} 36. f4 {[%emt 0:04:57]} f5 {[%emt 0:07:51]} 37. Kc4 {[%emt 0:04:40]} Kc7 {[%emt 0:01:30]} 38. Kd3 {[%emt 0:01:07]} Kb7 {[%emt 0:03:01]} 39. Kc4 {[%emt 0:02:25]} Kc7 {[%emt 0:05:52]} 40. Kd3 {[%emt 0:00:31]} Kc6 {[%emt 0:04:40]} 41. Kc4 {[%emt 0:02:31]} Kb7 {[%emt 0:01:12]} 42. Kb3 {[%emt 0:03:46]} Nf6 {[%emt 0:02:12]} 43. Ne3 {[%emt 0:03:43]} Kc6 {[%emt 0:06:23]} 44. Kc4 {[%emt 0:03:03]} Ne4 {[%emt 0:00:24]} 45. d5+ {[%emt 0:01:29]} exd5+ {[%emt 0:00:07]} 46. Nxd5 {[%emt 0:00:02]} Nd2+ {[%emt 0:01:18]} 47. Kd4 $1 {[%emt 0:00:28]} Nf3+ {[%emt 0:00:40]} 48. Kc4 {[%emt 0:00:02]} h4 {[%emt 0:04:10]} 49. Ne7+ {[%emt 0:03:55]} Kd7 {[%emt 0:00:26]} 50. Nxf5 {[%emt 0:00:41]} h3 {[%emt 0:00:07]} 51. Ne3 {[%emt 0:00:28]} (51. Kb5 Nxh2 (51... Kc7 52. Kc4 $17) 52. Ne3 (52. Kxb6 $2 Nf3 $19) 52... Kc7) 51... Nxh2 {[%emt 0:00:06]} 52. Kd5 {[%emt 0:06:25]} Kc7 {[%emt 0:00:56]} 53. f5 {[%emt 0:01:33]} Kd7 {[%emt 0:01:34]} 54. f6 {[%emt 0:01:01]} Ke8 {[%emt 0:04:04]} 55. Kc6 {[%emt 0:03:56]} Nf3 $1 {[%emt 0:00:23]} 56. Nf1 {[%emt 0:02:13]} (56. Kxb6 $2 h2 57. Nxg4 h1=Q $19 (57... h1=R $2 58. a5 $19)) (56. Nxg4 $2 Ne5+ 57. Nxe5 h2 58. Kxb6 (58. f7+ $2 Ke7 $19) 58... h1=Q $19 (58... h1=R 59. a5 $16)) 56... Nd2 $1 {[%emt 0:03:26]} 57. Nh2 {[%emt 0:00:48]} (57. Nxd2 $2 h2 58. Ne4 h1=Q $19 (58... h1=R 59. Kxb6 Rb1+ 60. Kc6 $11)) 57... Nf3 {[%emt 0:00:29]} 58. Nf1 {[%emt 0:00:15]} (58. Nxg4 $2 {perishes.} Ne5+ 59. Nxe5 h2 60. Kxb6 (60. f7+ $2 Ke7 $19) 60... h1=Q $19 (60... h1=R 61. a5 $14)) 58... Nd2 $1 {[%emt 0:00:07] A balanced but interesting game.   Weighted Error Value: White=0.02 (flawless) /Black=0.02 (flawless)   OK:         	White=25    	Black=13     Best:        	White=1     	Black=2      Strong:       	White=1     	Black=3} 1/2-1/2

[Event "Karel Janecek Open 2025"]
[Site "Prague"]
[Date "2025.03.03"]
[Round "5.16"]
[White "Urazayev, Arystanbek"]
[Black "Soham Datar"]
[Result "1-0"]
[Annotator "TA"]
[ECO "B30"]
[WhiteElo "2467"]
[BlackElo "2239"]
[PlyCount "107"]
[EventDate "2025.02.21"]
[EventType "swiss"]
[EventCountry "CZE"]
[SourceTitle "playchess.com"]
[Source "ChessBase"]
[SourceQuality "1"]
[TimeControl "40/5400+30:1800+30"]

{[%evp 9,107,47,27,46,37,39,49,46,50,50,37,24,84,46,43,54,54,49,46,42,41,46,46,-2,0,-2,25,20,78,97,77,-19,-11,-20,-16,-19,0,0,0,0,262,247,257,223,225,237,275,269,264,233,237,218,210,216,216,202,323,221,302,254,374,265,313,325,295,269,302,255,278,278,377,286,372,367,349,283,282,282,458,444,627,569,544,528,774,627,645,616,592,550,554,523,556,516,715,697,29977,29978,29979,29980]} 1. e4 {[%emt 0:04:13]} c5 {[%emt 0:00:23]} 2. Nf3 {[%emt 0:00:04]} Nc6 {[%emt 0:00:08]} 3. Bb5 {[%emt 0:00:26]} e5 {[%emt 0:00:22]} 4. O-O {[%emt 0:04:10]} Bd6 {[%emt 0:00:04]} 5. d4 {[%emt 0:04:24]} cxd4 {[%emt 0:04:04]} 6. c3 {[%emt 0:02:17][%cal Rc3d4] B30: Sicilian: 2...Nc6 3 Bb5, lines without ...g6.} Nge7 {[%emt 0:15:17]} 7. cxd4 {[%emt 0:01:20]} exd4 {[%emt 0:11:10]} 8. Nxd4 {[%emt 0:01:25] White is slightly better.} O-O {[%emt 0:14:34] 8...a6 is not played anymore.} 9. Nc3 {[%emt 0:01:10]} a6 {[%emt 0:02:26]} 10. Ba4 {[%emt 0:02:36]} Be5 {[%emt 0:07:40]} (10... Bc5 $11 11. Be3 Nxd4) 11. Nde2 $146 {[%emt 0:05:41]} (11. Be3 b5 12. Bb3 Bb7 13. f4 Bc7 14. Nxc6 Bxc6 15. Kh1 Kh8 16. Qe2 b4 17. Nd5 Nxd5 18. exd5 {0-1 Sezdbekov,R (2251)-Vishnu,P (2382) Kazan BRICS Games Blitz Team 2024 (6.9)}) 11... d6 {[%emt 0:01:16]} 12. f4 {[%emt 0:04:20]} Bf6 {[%emt 0:00:08]} 13. Be3 {[%emt 0:01:13] Against Qb6} Bg4 {[%emt 0:02:49]} 14. Qd3 {[%emt 0:05:33]} b5 {[%emt 0:01:37]} 15. Bb3 {[%emt 0:00:35]} Na5 {[%emt 0:01:54]} 16. Nd5 {[%emt 0:07:18]} (16. Bf2 $14) 16... Nxd5 $11 {[%emt 0:01:58]} 17. Bxd5 {[%emt 0:03:39]} Rc8 {[%emt 0:00:51][%cal Oa5c4]} (17... Nc4 $5) 18. Nd4 {[%emt 0:13:05]} Nc4 {[%emt 0:00:53] [#]} (18... Bd7 $11 {remains equal.}) 19. Bf2 $1 $16 {[%emt 0:00:13]} Bd7 {[%emt 0:07:50]} (19... Nxb2 20. Qg3 h5 21. h3 $11) 20. Rac1 {[%emt 0:09:04] White is more active.} (20. b3 $16 Nb6 21. Bb7) 20... Nxb2 $11 {[%emt 0:04:04]} 21. Qa3 {[%emt 0:01:20][%csl LRa6,LRb2,LRd6]} Na4 {[%emt 0:00:10]} 22. Rxc8 {[%emt 0:01:15]} Bxc8 {[%emt 0:00:41]} 23. Rc1 {[%emt 0:09:12]} h6 {[%emt 0:03:37]} 24. h3 {[%emt 0:07:43]} Kh8 $2 {[%emt 0:01:43][%mdl 8192] White stays focused until the end.} (24... Re8 $11 {and Black has nothing to worry.}) 25. Nc6 $18 {[%emt 0:02:18][%cal Bd4c6,Bc6e7,Be7d5][%mdl 32]} Qe8 {[%emt 0:05:05] Threatens to win with ...Bb2.} 26. Qxd6 {[%emt 0:00:09]} Bb2 {[%emt 0:01:46]} 27. Rc2 {[%emt 0:00:57]} Be6 {[%emt 0:03:43]} 28. Bxe6 {[%emt 0:04:22]} fxe6 {[%emt 0:00:04]} 29. Ne7 {[%emt 0:00:17]} Kh7 {[%emt 0:00:58] Prevents Ng6.} 30. Rc8 {[%emt 0:01:42]} (30. Qxe6 $2 Rf6 31. Qg4 (31. Rc8 $2 Rxe6 32. Rxe8 Rxe4 $19) 31... Qxe7 $17) 30... Qf7 {[%emt 0:00:34]} 31. Rxf8 {[%emt 0:00:14]} Qxf8 {[%emt 0:00:05]} 32. Qxe6 {[%emt 0:00:53]} Ba3 {[%emt 0:02:59]} (32... Qe8 $142 33. f5 Ba3) 33. Qg6+ {[%emt 0:01:15]} Kh8 {[%emt 0:00:05]} 34. Nd5 {[%emt 0:00:21][%cal Oe4e5] and e5! should not be overlooked} Bc5 {[%emt 0:00:29]} (34... Qd6 $142 35. Qxd6 Bxd6) 35. Qxa6 {[%emt 0:01:19]} Bxf2+ {[%emt 0:01:55]} 36. Kxf2 {[%emt 0:00:01][%mdl 4096] Endgame KQN-KQN. White is two pawns up.} Nc5 {[%emt 0:00:07]} 37. Qxb5 {[%emt 0:00:21]} Nxe4+ {[%emt 0:00:04]} 38. Kf3 {[%emt 0:00:48]} Ng5+ {[%emt 0:03:43]} 39. Kg3 {[%emt 0:00:09]} Ne6 {[%emt 0:00:41]} 40. Qb4 {[%emt 0:01:36]} Qd8 {[%emt 0:01:57]} 41. Qc4 {[%emt 0:31:23]} Qd6 {[%emt 0:02:12]} 42. Kf2 {[%emt 0:00:00]} Nc5 {[%emt 0:00:55]} 43. Kg1 {[%emt 0:00:00]} Ne6 $2 {[%emt 0:03:34]} (43... Kh7 {was worth a try.} 44. Kh1 Kh8) 44. a4 {[%emt 0:00:00]} Qd7 {[%emt 0:00:11]} (44... Nc5 $142 45. a5 h5) 45. Kh1 {[%emt 0:00:00]} Qd8 {[%emt 0:01:16]} 46. Kh2 {[%emt 0:00:00]} Nf8 {[%emt 0:01:40]} 47. Qc6 {[%emt 0:00:00] Prevents Ne6.} Kh7 {[%emt 0:00:32]} 48. Qc2+ {[%emt 0:00:00]} Kh8 {[%emt 0:00:07]} 49. Qe4 {[%emt 0:00:00]} Qa8 {[%emt 0:01:20] [#]} 50. Nf6 $1 {[%emt 0:00:00][%mdl 512]} Qd8 {[%emt 0:00:32]} (50... Qxe4 51. Nxe4) 51. Ng4 {[%emt 0:00:00]} Qa5 {[%emt 0:02:30]} 52. Ne5 {[%emt 0:00:00]} Qd2 {[%emt 0:01:33]} 53. Qf5 {[%emt 0:00:00]} Ne6 {[%emt 0:01:43]} 54. Ng6+ {[%emt 0:00:00] Weighted Error Value: White=0.21 (precise) /Black=0.41  Loses game:     	---       	Black=1      Mistake:       	White=2     	Black=6      Inaccurate:     	White=1     	Black=7      OK:         	White=16    	Black=14     Best:        	White=6     	Black=2      Strong:       	White=1     	---} (54. Qxe6 Qxf4+ 55. Kg1 Qe3+ 56. Kf1 Qf4+ 57. Nf3 Qxa4 $18) 1-0

[Event "Karel Janecek Open 2025"]
[Site "Prague"]
[Date "2025.03.04"]
[Round "6.1"]
[White "Ioannidis, Evgenios"]
[Black "Pechac, Jergus"]
[Result "1/2-1/2"]
[Annotator "TA"]
[ECO "D41"]
[WhiteElo "2484"]
[BlackElo "2603"]
[PlyCount "98"]
[EventDate "2025.02.21"]
[EventType "swiss"]
[EventCountry "CZE"]
[SourceTitle "playchess.com"]
[Source "ChessBase"]
[SourceQuality "1"]
[TimeControl "40/5400+30:1800+30"]

{[%evp 11,98,35,35,31,23,-20,28,23,33,20,19,20,28,19,18,13,20,24,29,0,0,0,9,7,8,16,15,0,0,0,5,2,2,0,8,0,0,0,0,0,0,0,0,0,0,0,0,0,0,0,0,0,0,0,0,0,0,-25,-33,-73,-90,-107,-91,-139,0,0,0,0,0,0,-8,-24,0,0,0,-4,0,0,0,0,0,0,0,0,0,0,0,0,0]} 1. d4 {[%emt 0:00:09]} Nf6 {[%emt 0:02:14]} 2. c4 {[%emt 0:00:09]} e6 {[%emt 0:00:04]} 3. Nf3 {[%emt 0:00:07]} d5 {[%emt 0:00:05]} 4. Nc3 {[%emt 0:00:06]} c5 {[%emt 0:00:19]} 5. cxd5 {[%emt 0:00:19]} cxd4 {[%emt 0:00:06]} 6. Qxd4 {[%emt 0:00:18]} exd5 {[%emt 0:00:05]} 7. e4 {[%emt 0:00:18] 7.Bg5 injects fresh life into this line. D41: Queen's Gambit Declined: Semi-Tarrasch with 5 cxd5.} dxe4 {[%emt 0:00:06]} 8. Qxd8+ {[%emt 0:00:05]} Kxd8 {[%emt 0:00:05]} 9. Ng5 {[%emt 0:00:06][%csl LRe4,LRf7] White has an edge.} Be6 {[%emt 0:00:04]} 10. Bd2 {[%emt 0:00:25][%cal Og2g3]} Bb4 {[%emt 0:01:10]} 11. g3 {[%emt 0:00:07]} ({Much weaker is} 11. Ngxe4 Nxe4 12. Nxe4 Bxd2+ 13. Nxd2 Nc6 $11) 11... Nbd7 {[%emt 0:02:15]} 12. Nxe6+ {[%emt 0:06:37]} fxe6 {[%emt 0:00:06] [#]} 13. Nxe4 $146 {[%emt 0:00:58]} (13. Bg2 Nc5 14. Ke2 Ke7 15. Nxe4 Bxd2 16. Nxc5 Ba5 17. Rac1 Bb6 18. Na4 Rhd8 19. Nxb6 axb6 {1-0 Paravyan,D (2584)-Svane,R (2620) Titled Tuesday intern op 21st Mar Early blitz 2023 (8)}) 13... Bxd2+ {[%emt 0:00:08]} 14. Nxd2 {[%emt 0:00:03]} Rc8 {[%emt 0:00:35]} 15. Bc4 {[%emt 0:00:32][%cal Oe1g1]} Ke7 {[%emt 0:02:52]} 16. Ke2 {[%emt 0:03:37]} Ne4 {[%emt 0:03:19] [#]} 17. Rac1 {[%emt 0:00:26]} Ne5 {[%emt 0:04:33]} 18. Nxe4 {[%emt 0:01:55]} Nxc4 {[%emt 0:00:37]} 19. Rc3 {[%emt 0:06:55]} Nd6 {[%emt 0:01:42]} 20. Rhc1 {[%emt 0:01:58]} Rxc3 {[%emt 0:00:10]} 21. Nxc3 $11 {[%emt 0:00:04][%mdl 4096] Endgame KRN-KRN} Rc8 {[%emt 0:00:28]} 22. Kd3 {[%emt 0:00:07]} Rc5 {[%emt 0:01:26]} 23. f4 {[%emt 0:01:29]} h5 {[%emt 0:14:52]} 24. Re1 {[%emt 0:03:51]} Kf6 {[%emt 0:03:29]} 25. b4 {[%emt 0:03:57]} Rf5 {[%emt 0:01:40]} 26. a4 {[%emt 0:08:55]} h4 {[%emt 0:01:53]} 27. Rc1 {[%emt 0:11:13]} hxg3 {[%emt 0:03:05]} 28. hxg3 {[%emt 0:00:04]} g5 {[%emt 0:00:23]} 29. Ne4+ {[%emt 0:01:37]} Nxe4 {[%emt 0:00:05]} 30. Kxe4 {[%emt 0:00:04]} gxf4 {[%emt 0:00:14] KR-KR. Black is a pawn up.} 31. g4 {[%emt 0:03:37]} Rd5 {[%emt 0:03:00]} 32. Rc7 {[%emt 0:02:10]} Rd1 {[%emt 0:08:41]} 33. Rxb7 {[%emt 0:00:33]} e5 {[%emt 0:00:22]} 34. g5+ {[%emt 0:00:06]} Kg6 {[%emt 0:06:35]} 35. Rxa7 {[%emt 0:03:44]} Re1+ {[%emt 0:00:09]} 36. Kf3 {[%emt 0:00:04]} (36. Kd5 e4 37. Ke5 f3 (37... Kxg5 38. Rg7+ Kh6 39. Rf7 $11) 38. Ra6+ Kxg5 $19) 36... Kxg5 {[%emt 0:00:13]} 37. Rg7+ {[%emt 0:17:33]} Kf5 {[%emt 0:02:36]} ({Black should try} 37... Kf6 $17 38. Rg8 Re3+ 39. Kg2 e4) 38. Rf7+ {[%emt 0:01:06]} Ke6 {[%emt 0:00:14]} 39. Rf8 {[%emt 0:00:29]} Re3+ {[%emt 0:02:36]} 40. Kg4 $1 {[%emt 0:02:20]} Rg3+ {[%emt 0:00:23]} 41. Kh4 {[%emt 0:30:05]} Rb3 {[%emt 0:32:34]} 42. b5 {[%emt 0:00:55] The position is equal.} Kd5 {[%emt 0:03:08]} 43. Rd8+ {[%emt 0:01:35]} Kc4 {[%emt 0:09:19]} 44. Kg4 {[%emt 0:06:40]} f3 {[%emt 0:03:32]} 45. Rd1 {[%emt 0:01:34]} Kc5 {[%emt 0:08:00]} 46. Kg3 {[%emt 0:03:36]} e4 {[%emt 0:01:03] Threatens to win with ...Rb2.} 47. Kf4 {[%emt 0:00:09]} Rb4 {[%emt 0:00:19]} 48. Ra1 {[%emt 0:02:26]} Kd4 {[%emt 0:01:12]} 49. Rd1+ {[%emt 0:01:54]} Kc5 {[%emt 0:01:55] Weighted Error Value: White=0.03 (flawless) /Black=0.07 (flawless)   Mistake:       	---       	Black=1      Inaccurate:     	White=2     	Black=1      OK:         	White=18    	Black=24     Best:        	White=2     	Black=3      Strong:       	White=1     	---} 1/2-1/2